fUSD/lending_fUSD_20240526
["ID","MTS","AMOUNT","RATE_DAILY","PERIOD"]
[327982974,1716739843052,-197.87473693,0.0001293,2]
[327982975,1716739843062,-2398.26398298,0.0001293,2]
[327982976,1716739843072,-172.31197726,0.0001293,2]
[327982977,1716739843082,-43513.3077514,0.00012989,2]
[327982978,1716739843091,-164.36820711,0.0001299,2]
[327982979,1716739843101,-164.36820711,0.0001299,2]
[327982980,1716739843110,-164.36820711,0.0001299,2]
[327982981,1716739843120,-150.57,0.0001299,2]
[327982982,1716739843129,-40525.9129979,0.00012991,2]
[327982984,1716739843139,-37538.5182443,0.00012991,2]
[327982985,1716739843148,-784.30875841,0.00012998,2]
[327982986,1716739843157,-306.53561288,0.00012998,2]
[327982987,1716739843166,-1381.93423711,0.00012998,2]
[327982988,1716739843175,-155.0,0.00012998,2]
[327982989,1716739843184,-3092.38465923,0.00012998,2]
[327982990,1716739843193,-4280.3749567,0.00012998,2]
[327982991,1716739843203,-850.11730473,0.00012998,2]
[327982992,1716739843212,-410.08555038,0.00012998,2]
[327982993,1716739843221,-155.0,0.00012998,2]
[327982994,1716739843230,-837.07031889,0.00012998,2]
[327982995,1716739843239,-364.49648891,0.00012998,2]
[327982996,1716739843250,-321.96055433,0.00012998,2]
[327982997,1716739843259,-10608.13118641,0.00012998,2]
[327982998,1716739843268,-176.05154758,0.00012998,2]
[327982999,1716739843278,-275.70329863,0.00012998,2]
[327983000,1716739843287,-158.14534676,0.00012998,2]
[327983001,1716739843297,-155.50433289,0.00012998,2]
[327983002,1716739843307,-306.76383054,0.00012998,2]
[327983003,1716739843316,-267.89346007,0.00012998,2]
[327983004,1716739843325,-319.39260741,0.00012998,2]
[327983005,1716739843334,-155.0,0.00012999,2]
[327983006,1716739843343,-155.0,0.00012999,2]
[327983007,1716739843353,-2099.08641074,0.00012999,2]
[327983008,1716739843362,-511.0,0.00013,2]
[327983009,1716739843371,-1659158.31966455,0.00013,2]
[327983010,1716739843913,-3591.99522543,0.00013,2]
[327983011,1716739843928,-7430.86572749,0.00013,2]
[327983012,1716739843939,-1202.42514759,0.00013,2]
[327983013,1716739843950,-854.3174235,0.00013,2]
[327983014,1716739843963,-566.08002,0.00013,2]
[327983015,1716739843973,-4445.23740939,0.00013,2]
[327983016,1716739843984,-647.5444773,0.00013,2]
[327983021,1716739845749,-752.73871514,0.00012799,2]
[327983022,1716739845759,-2188.02281065,0.00012799,2]
[327983023,1716739845768,-943202.527621,0.00013,2]
[327983024,1716739845778,-384.0,0.0001303,2]
[327983025,1716739845788,-5005.97534041,0.0001305,2]
[327983026,1716739845797,-512.0,0.00013192,2]
[327983027,1716739845806,-1000.0,0.000135,2]
[327983028,1716739845818,-200.0,0.00013699,2]
[327983029,1716739845827,-2751.0,0.00013699,2]
[327983030,1716739845837,-1737.98,0.00013699,2]
[327983031,1716739845846,-457.35,0.00013699,2]
[327983032,1716739845856,-159.85,0.00013973,2]
[327983033,1716739845866,-163.57,0.00013973,2]
[327983034,1716739845875,-151.94,0.00013973,2]
[327983035,1716739845890,-160.61,0.00013973,2]
[327983036,1716739845901,-4659.6037928,0.00014,2]
[327983037,1716739845914,-163.71682212,0.00014,2]
[327983038,1716739845927,-3120.55635302,0.00014,2]
[327983049,1716740046250,-402.95442392,8.742e-05,2]
[327983050,1716740046271,-197.04557608,8.743e-05,2]
[327983051,1716740252837,-526.60043023,8.73e-05,2]
[327983052,1716740271605,-8.47938118,8.73e-05,2]
[327983053,1716740271627,-526.60043023,8.73e-05,2]
[327983054,1716740271648,-64.92018859,8.731e-05,2]
[327983055,1716740282534,-600.0,8.73e-05,2]
[327983056,1716740393134,-155.0,8.719e-05,2]
[327983057,1716740393156,-155.0,8.719e-05,2]
[327983058,1716740393180,-290.0,8.72e-05,2]
[327983059,1716740533835,-535.07981141,8.371e-05,2]
[327983060,1716740533874,-526.60043023,8.372e-05,2]
[327983061,1716740533910,-155.0,8.372e-05,2]
[327983062,1716740533944,-337.35922135,8.373e-05,2]
[327983063,1716740533981,-447.21719507,8.373e-05,2]
[327983064,1716740534018,-475.61,8.374e-05,2]
[327983065,1716740534054,-837.27596995,8.71e-05,2]
[327983066,1716740534087,-1249.88651912,8.711e-05,2]
[327983067,1716740534122,-1382.31585796,8.712e-05,2]
[327983068,1716740534160,-2919.23173604,8.712e-05,2]
[327983069,1716740534195,-1410.69743006,8.716e-05,2]
[327983070,1716740534232,-784.50568424,8.725e-05,2]
[327983071,1716740534265,-150.0,8.753e-05,2]
[327983072,1716740534479,-2403.09595879,8.754e-05,2]
[327983073,1716740534514,-150.99,9.987e-05,2]
[327983074,1716740534548,-155.0,9.99e-05,2]
[327983075,1716740534581,-882.41621094,9.99e-05,2]
[327983076,1716740534614,-274.95182732,9.991e-05,2]
[327983077,1716740534645,-17467.03,9.992e-05,2]
[327983078,1716740534678,-549.40255929,0.0001,2]
[327983079,1716740534726,-790.48715204,0.0001,2]
[327983080,1716740534762,-252.68598435,0.0001,2]
[327983081,1716740535072,173.64356853,8.37e-05,2]
[327983082,1716740536210,1274.02294122,8.37e-05,2]
[327983083,1716740537004,956.39580577,8.284e-05,2]
[327983084,1716740540103,155.79,8.489e-05,2]
[327983085,1716740554329,120126.20949516,8.284e-05,2]
[327983086,1716740554889,355.01577903,7.87e-05,2]
[327983087,1716740570490,-541.55577053,0.00010207,2]
[327983088,1716740570514,-4433.68116841,0.00010207,2]
[327983089,1716740570535,-24.76306106,0.00010208,2]
[327983090,1716740571582,-297.31432419,0.00010208,2]
[327983091,1716740571605,-4702.68567581,0.00010208,2]
[327983092,1716740572300,-5000.0,0.00010208,2]
[327983094,1716740657894,516.84870749,0.000102,2]
[327983095,1716740662450,210.49319076,0.000102,2]
[327983096,1716740668770,447.21719507,0.000102,2]
[327983097,1716740670471,790.48715204,0.000102,2]
[327983098,1716740675159,526.60043023,0.000102,2]
[327983099,1716740681111,252.68598435,0.000102,2]
[327983100,1716740702592,713.935355,0.000102,2]
[327983101,1716740702967,157.90877204,0.000102,2]
[327983102,1716740706783,541.55577053,0.000102,2]
[327983103,1716740731170,299.15348563,0.000102,2]
[327983104,1716740747630,298.99728679,0.000102,2]
[327983107,1716740751701,526.60043023,0.000102,2]
[327983108,1716740795852,14149.0805,0.00010101,2]
[327983110,1716740819840,87.21046565,8.72e-05,2]
[327983111,1716740819861,412.78953435,8.72e-05,2]
[327983112,1716740820203,500.0,8.72e-05,2]
[327983113,1716740820892,500.0,8.72e-05,2]
[327983114,1716740821307,500.0,8.72e-05,2]
[327983115,1716740821702,500.0,8.72e-05,2]
[327983116,1716740822048,500.0,8.72e-05,2]
[327983117,1716740822519,500.0,8.72e-05,2]
[327983118,1716740822890,570.0,8.72e-05,2]
[327983119,1716740831667,17.21046565,8.72e-05,2]
[327983120,1716740831687,482.78953435,8.72e-05,2]
[327983121,1716740832850,500.0,8.72e-05,2]
[327983122,1716740833288,500.0,8.72e-05,2]
[327983123,1716740833667,500.0,8.72e-05,2]
[327983124,1716740834033,571.0,8.72e-05,2]
[327983125,1716740837310,155.0,8.719e-05,2]
[327983126,1716740837736,402.95442392,8.719e-05,2]
[327983142,1716740962286,-155.0,0.00010199,2]
[327983154,1716740970288,-1359.60269171,0.000102,2]
[327983162,1716741000113,451.82,8.438e-05,2]
[327983176,1716741031790,-150.0,0.0001021,2]
[327983178,1716741031800,-250.0,0.00010212,2]
[327983180,1716741031810,-602.11,0.0001031,2]
[327983182,1716741031819,-1190.96254094,0.00010336,2]
[327983183,1716741031831,-9344.82584628,0.00010336,2]
[327983184,1716741031840,-250.0,0.00010337,2]
[327983185,1716741031850,-1969.78,0.00010337,2]
[327983186,1716741031859,-10305.37,0.00010338,2]
[327983187,1716741031868,-1000.0,0.00010338,2]
[327983188,1716741031878,-220.67,0.00010353,2]
[327983189,1716741031887,-551.24,0.00010408,2]
[327983190,1716741031896,-1218.89,0.00010434,2]
[327983191,1716741031906,-499.99,0.00010434,2]
[327983192,1716741031917,-233.19699311,0.00010501,2]
[327983193,1716741031926,-155.78,0.00010527,2]
[327983194,1716741031935,-627.99,0.00010539,2]
[327983195,1716741031945,-155.78,0.00010595,2]
[327983196,1716741031955,-212.56,0.00010598,2]
[327983197,1716741031964,-4890.77041381,0.00010599,2]
[327983198,1716741031973,-210.25967461,0.00010607,2]
[327983199,1716741031983,-267.32766801,0.00010607,2]
[327983200,1716741031993,-730.1914729,0.00010607,2]
[327983201,1716741032002,-168.04912366,0.00010607,2]
[327983202,1716741032012,-712.80280056,0.00010607,2]
[327983203,1716741032021,-402.50754496,0.00010607,2]
[327983204,1716741032030,-162.14821163,0.00010607,2]
[327983205,1716741032039,-248.39244766,0.00010607,2]
[327983206,1716741032049,-179.18905896,0.00010608,2]
[327983207,1716741032058,-584.51508048,0.00010608,2]
[327983208,1716741032068,-321.96055433,0.00010609,2]
[327983209,1716741032078,-2843.25257248,0.00010609,2]
[327983210,1716741032975,-3533.22432,0.00010609,2]
[327983211,1716741032998,-2228.68088394,0.00010609,2]
[327983212,1716741033010,-743.54214399,0.00010609,2]
[327983213,1716741033021,-1195.53907704,0.00010609,2]
[327983216,1716741037860,-2183.05553526,0.00010609,2]
[327983217,1716741037878,-6706.93003955,0.00010609,2]
[327983218,1716741037888,-1000.0,0.0001061,2]
[327983219,1716741037898,-3844.28490656,0.0001061,2]
[327983220,1716741037908,-23900.0,0.00010611,2]
[327983221,1716741037920,-155.78,0.00010664,2]
[327983222,1716741037929,-451.82,0.00010702,2]
[327983223,1716741037940,-155.78,0.00010733,2]
[327983224,1716741037949,-155.78,0.00010801,2]
[327983225,1716741037959,-177.68,0.00010858,2]
[327983226,1716741037970,-155.78,0.0001087,2]
[327983227,1716741037980,-155.78,0.00010938,2]
[327983228,1716741037991,-150.0,0.00010959,2]
[327983229,1716741038001,-1500.0,0.00010959,2]
[327983230,1716741038011,-197.81,0.00010959,2]
[327983231,1716741038021,-751.45358305,0.00011,2]
[327983232,1716741038031,-155.78,0.00011007,2]
[327983233,1716741038041,-155.78,0.00011075,2]
[327983234,1716741038051,-210.0,0.00011231,2]
[327983235,1716741038062,-155.15881506,0.00011519,2]
[327983236,1716741038072,-423.71279463,0.00011519,2]
[327983237,1716741038086,-429.29,0.00011555,2]
[327983238,1716741038098,-429.29,0.00011558,2]
[327983239,1716741038109,-429.29,0.00011561,2]
[327983240,1716741038120,-429.29,0.00011564,2]
[327983241,1716741038131,-429.29,0.00011567,2]
[327983242,1716741038143,-429.29,0.0001157,2]
[327983243,1716741038153,-429.29,0.00011573,2]
[327983244,1716741038164,-429.29,0.00011576,2]
[327983245,1716741038175,-429.29,0.00011579,2]
[327983246,1716741038186,-429.29,0.00011582,2]
[327983247,1716741038197,-429.29,0.00011585,2]
[327983248,1716741038207,-429.29,0.00011588,2]
[327983249,1716741038218,-429.29,0.00011591,2]
[327983251,1716741038229,-429.29,0.00011594,2]
[327983253,1716741038239,-429.29,0.00011597,2]
[327983255,1716741038249,-429.29,0.000116,2]
[327983257,1716741038259,-429.29,0.00011603,2]
[327983259,1716741038270,-429.29,0.00011606,2]
[327983261,1716741038280,-429.29,0.00011609,2]
[327983263,1716741038291,-429.29,0.00011612,2]
[327983265,1716741038301,-1000.0,0.0001163,2]
[327983267,1716741038311,-1658.98981771,0.00012,2]
[327983268,1716741038323,-233.0,0.00012354,2]
[327983269,1716741038333,-3464.79264756,0.000124,2]
[327983270,1716741038344,-1640.8304,0.00012444,2]
[327983272,1716741038354,-326.03857462,0.00012542,2]
[327983274,1716741038369,-155.0,0.00012542,2]
[327983276,1716741038379,-155.16197257,0.00012542,2]
[327983278,1716741038390,-262.03772985,0.00012542,2]
[327983280,1716741038401,-155.29099376,0.00012542,2]
[327983282,1716741038412,-155.0,0.00012542,2]
[327983285,1716741038426,-326.26994767,0.00012542,2]
[327983287,1716741038437,-836.86466783,0.00012542,2]
[327983289,1716741038447,-155.000001,0.00012542,2]
[327983291,1716741038457,-155.0,0.00012542,2]
[327983293,1716741038468,-337.12183531,0.00012542,2]
[327983295,1716741038478,-1381.55261626,0.00012542,2]
[327983297,1716741038494,-1136.33455654,0.00012542,2]
[327983300,1716741038504,-4623.93086454,0.00012543,2]
[327983302,1716741038515,-372.66409471,0.00012543,2]
[327983304,1716741038525,-268.32530534,0.00012543,2]
[327983306,1716741038535,-523.26379453,0.00012543,2]
[327983308,1716741038546,-201.08302351,0.00012544,2]
[327983310,1716741038556,-1263.1341,0.000126,2]
[327983312,1716741038570,-8021.05,0.000126,2]
[327983314,1716741038581,-269.2705,0.000126,2]
[327983316,1716741038591,-1728.939,0.000126,2]
[327983319,1716741038601,-2500.0,0.000126,2]
[327983321,1716741038615,-10175.2587,0.000127,2]
[327983323,1716741038625,-245000.0,0.000127,2]
[327983325,1716741038635,-1000.0,0.000127,2]
[327983328,1716741038647,-1000.0,0.00012922,2]
[327983330,1716741038657,-451.82,0.00012966,2]
[327983332,1716741038668,-1969.78,0.00013077,2]
[327983334,1716741038679,-532.82625161,0.00013347,2]
[327983336,1716741038690,-200.0,0.00013392,2]
[327983338,1716741038701,-2364.2726144,0.00013497,2]
[327983340,1716741038712,-155.0,0.00013499,2]
[327983342,1716741038722,-280.0,0.00013635,2]
[327983344,1716741038733,-200.0,0.00013699,2]
[327983346,1716741038743,-1390.38,0.00013699,2]
[327983349,1716741038753,-228.67,0.00013699,2]
[327983351,1716741038762,-2751.0,0.00013699,2]
[327983353,1716741038772,-280.38125548,0.00013859,2]
[327983355,1716741038782,-167.26483,0.0001386,2]
[327983357,1716741038791,-200.0,0.00013887,2]
[327983359,1716741038801,-500.0,0.00013887,2]
[327983361,1716741038812,-200.0,0.00013888,2]
[327983363,1716741038823,-500.0,0.00013888,2]
[327983365,1716741038833,-500.0,0.00013888,2]
[327983367,1716741038843,-200.0,0.00013888,2]
[327983369,1716741038853,-323.05420491,0.00013889,2]
[327983372,1716741038863,-151.41,0.00013973,2]
[327983374,1716741038872,-163.57,0.00013973,2]
[327983376,1716741038882,-314.3385567,0.00013989,2]
[327983393,1716741039138,-2298.2677053,0.00013989,2]
[327983394,1716741039148,-11896.8728855,0.00013989,2]
[327983395,1716741039158,-1049.54320537,0.00013999,2]
[327983396,1716741039171,-230.0,0.00014,2]
[327983397,1716741039181,-180.0617525,0.00014,2]
[327983398,1716741039191,-2000.0,0.00014,2]
[327983399,1716741039200,-200.0,0.00014,2]
[327983400,1716741039209,-2000.0,0.0001414,2]
[327983401,1716741039219,-200.0,0.0001414,2]
[327983402,1716741039229,-1000.0,0.00014214,2]
[327983403,1716741039238,-313.99372925,0.00014247,2]
[327983404,1716741039247,-1298.39020343,0.00014248,2]
[327983405,1716741039258,-167.26484,0.0001438,2]
[327983406,1716741039268,-1390.38,0.00014384,2]
[327983407,1716741039277,-256.51189038,0.00014698,2]
[327983408,1716741039286,-11721.0,0.000147,3]
[327983409,1716741039295,-535.6337843,0.00014796,2]
[327983410,1716741039305,-167.79510235,0.00014796,2]
[327983411,1716741039315,-155.24268003,0.00014797,2]
[327983412,1716741039324,-326.8758113,0.00014797,2]
[327983413,1716741039334,-312.80892937,0.00014798,2]
[327983414,1716741039343,-2813.98016787,0.00014798,2]
[327983415,1716741039352,-155.21567507,0.00014798,2]
[327983416,1716741039362,-155.21997395,0.00014798,2]
[327983417,1716741039372,-3092.38465923,0.00014798,2]
[327983418,1716741039382,-155.72880227,0.00014798,2]
[327983419,1716741039392,-155.54139601,0.00014798,2]
[327983420,1716741039401,-448.29543391,0.00014799,2]
[327983421,1716741039410,-237.48860909,0.00014799,2]
[327983422,1716741039422,-150.55289133,0.000149,2]
[327983423,1716741039431,-218.8764611,0.0001499,2]
[327983424,1716741039441,-166.41752539,0.00014996,2]
[327983425,1716741039450,-156.01266103,0.00014996,2]
[327983426,1716741039460,-1825.78938997,0.00014996,2]
[327983427,1716741039470,-179.09907281,0.00014996,2]
[327983428,1716741039479,-162.52068352,0.00014996,2]
[327983429,1716741039492,-155.0,0.00014997,2]
[327983430,1716741039502,-263.61892074,0.00014997,2]
[327983431,1716741039512,-276.26477197,0.00014997,2]
[327983432,1716741039521,-5565.87580621,0.00014997,2]
[327983433,1716741039531,-166.87237412,0.00014997,2]
[327983434,1716741039541,-482.72660575,0.00014997,2]
[327983435,1716741039551,-281.93948937,0.00014997,2]
[327983436,1716741039561,-204.63851411,0.00014997,2]
[327983437,1716741039570,-249.83569552,0.00014997,2]
[327983438,1716741039580,-177.14232429,0.00014997,2]
[327983439,1716741039590,-267.96249102,0.00014997,2]
[327983440,1716741039599,-538.79999313,0.00014998,2]
[327983441,1716741039609,-686.78764601,0.00014998,2]
[327983442,1716741039619,-4280.3749567,0.00014998,2]
[327983443,1716741039629,-364.49648891,0.00014998,2]
[327983444,1716741039639,-1226.71869147,0.00014998,2]
[327983446,1716741039648,-155.40188889,0.00014998,2]
[327983448,1716741039658,-155.0,0.00014998,2]
[327983450,1716741039668,-155.81994797,0.00014998,2]
[327983451,1716741039678,-206.36727858,0.00014998,2]
[327983452,1716741039687,-300.49663506,0.00014998,2]
[327983453,1716741039698,-241.14361363,0.00014998,2]
[327983454,1716741039708,-248.58476661,0.00014998,2]
[327983455,1716741039717,-155.0,0.00014998,2]
[327983456,1716741039727,-18128.77714405,0.00014998,2]
[327983457,1716741039736,-501.47909436,0.00014998,2]
[327983458,1716741039746,-505.36917605,0.00014999,2]
[327983459,1716741039756,-318.15299134,0.00014999,2]
[327983460,1716741039765,-1064.69028387,0.00014999,2]
[327983461,1716741039775,-306.53561288,0.00014999,2]
[327983462,1716741039786,-1916.9056817,0.00015,2]
[327983463,1716741039795,-25425.80937339,0.00015,2]
[327983464,1716741039859,-24410.66371203,0.00015,2]
[327983465,1716741039875,-23053.46532806,0.00015,2]
[327983466,1716741039887,-6893.1,0.00015,2]
[327983467,1716741039898,-991.4127967,0.00015,2]
[327983468,1716741039911,-986.42414002,0.00015,2]
[327983469,1716741039925,-970.45519597,0.00015,2]
[327983470,1716741039937,-2720.30488067,0.00015,2]
[327983471,1716741039960,-5391.00195,0.00015,2]
[327983473,1716741040389,-1895.60277615,0.00015,2]
[327983474,1716741040400,-20117.95504947,0.00015,2]
[327983475,1716741040412,-6479.2731675,0.00015,2]
[327983476,1716741040426,-8895.15,0.00015,2]
[327983477,1716741040437,-7059.15225,0.00015,2]
[327983478,1716741040448,-256.89893274,0.00015,2]
[327983479,1716741040461,-14328.08587675,0.00015,2]
[327983480,1716741040470,-619.40919627,0.00015,2]
[327983481,1716741040480,-8094.00748776,0.00015,2]
[327983482,1716741040493,-155.0,0.00015,2]
[327983483,1716741040502,-323.68964923,0.00015,2]
[327983484,1716741040512,-1043.83643081,0.00015,2]
[327983485,1716741040522,-216.31651485,0.00015,2]
[327983486,1716741040533,-167.26484,0.00015,2]
[327983487,1716741040543,-1390.38,0.00015068,2]
[327983488,1716741040552,-451.82,0.0001523,2]
[327983489,1716741040562,-8433.82046273,0.000154,2]
[327983490,1716741040576,-7208.25831959,0.000154,2]
[327983491,1716741040586,-11721.0,0.000154,5]
[327983492,1716741040596,-1000.0,0.00015507,2]
[327983493,1716741040605,-167.26483,0.0001563,2]
[327983494,1716741040614,-1390.38,0.00015753,2]
[327983495,1716741040623,-1969.78,0.00015817,2]
[327983496,1716741040633,-177.13,0.00015831,2]
[327983497,1716741040643,-167.26484,0.0001625,2]
[327983498,1716741040653,-1390.38,0.00016438,2]
[327983499,1716741040663,-4617.99,0.00016438,2]
[327983500,1716741040674,-1228.02339539,0.000165,2]
[327983501,1716741040684,-167.26484,0.0001688,2]
[327983502,1716741040694,-5084.10935466,0.00017,2]
[327983503,1716741040703,-153.65,0.00017215,2]
[327983504,1716741040713,-6073.08788112,0.00017225,2]
[327983505,1716741040725,-940.67553752,0.00017225,2]
[327983506,1716741040736,-886.45947666,0.00017225,2]
[327983507,1716741040748,-987.19092115,0.00017225,2]
[327983508,1716741040759,-8525.12361827,0.00017225,2]
[327983509,1716741040771,-386.7847,0.00017225,2]
[327983510,1716741041202,-129447.02690182,0.00017225,2]
[327983511,1716741041214,-280.62050714,0.00017225,2]
[327983548,1716741042877,-164.84,0.00017215,3]
[327983549,1716741042887,-7197.96474601,0.00017225,2]
[327983550,1716741042899,-2340.0,0.00017225,2]
[327983551,1716741042911,-1438.8239,0.00017225,2]
[327983552,1716741043027,-500.0,0.00017225,2]
[327983555,1716741044843,-2294.79725672,0.00017225,2]
[327983556,1716741044855,-11996.25578493,0.00017225,2]
[327983557,1716741044865,-11.00922759,0.00017494,2]
[327983560,1716741046279,-3022.30394469,0.00017224,2]
[327983561,1716741046290,-2884.4798,0.00017224,2]
[327983567,1716741599308,-535.07981141,9.988e-05,2]
[327983568,1716741599332,-146.40554735,9.988e-05,2]
[327983596,1716742232998,-672.29162,9.307e-05,2]
[327983598,1716742233146,-164.98434995,9.307e-05,2]
[327983599,1716742233155,-505.4842332,9.308e-05,2]
[327983600,1716742233165,-1065.00112556,9.309e-05,2]
[327983601,1716742233176,-404.91,9.32e-05,2]
[327983602,1716742233186,-155.0,9.988e-05,2]
[327983603,1716742233195,-672.29162,9.988e-05,2]
[327983604,1716742233204,-155.49565988,0.0001,2]
[327983605,1716742233214,-2673.325242,0.00010904,2]
[327983606,1716742233224,-824.23,0.00010959,2]
[327983607,1716742233234,-1575.39,0.00010974,2]
[327983608,1716742233244,-751.45358305,0.00011,2]
[327983609,1716742233253,-250.0,0.00011014,2]
[327983610,1716742233263,-835.2,0.00011024,2]
[327983611,1716742233272,-155.77,0.00011033,2]
[327983612,1716742233281,-155.77,0.00011176,2]
[327983613,1716742233291,-150.0,0.00011284,2]
[327983614,1716742233300,-150.0,0.00011284,2]
[327983615,1716742233309,-1431.15,0.00011285,2]
[327983616,1716742233318,-299.99,0.00011285,2]
[327983617,1716742233329,-1908.9,0.00011285,2]
[327983618,1716742233338,-155.77,0.0001132,2]
[327983619,1716742233347,-250.0,0.00011364,2]
[327983620,1716742233357,-224.99,0.00011364,2]
[327983622,1716742233366,-155.77,0.00011464,2]
[327983623,1716742233375,-404.91,0.00011584,2]
[327983624,1716742233385,-155.77,0.00011608,2]
[327983625,1716742233395,-2364.90707739,0.00011789,2]
[327983626,1716742233405,-21489.75729798,0.000118,2]
[327983627,1716742233414,-3100.04,0.000118,2]
[327983628,1716742233424,-1591.92,0.00011933,2]
[327983629,1716742233434,-4682.58226135,0.00011978,2]
[327983630,1716742233445,-13803.52221255,0.00011978,2]
[327983631,1716742233457,-4579.69176715,0.00011978,2]
[327983632,1716742233468,-824.20375895,0.00011978,2]
[327983633,1716742233478,-835.2,0.00012403,2]
[327983634,1716742233487,-210.0,0.00012412,2]
[327983635,1716742233497,-438.03932105,0.00012498,2]
[327983636,1716742233509,-2061.96067895,0.00012498,2]
[327983637,1716742233520,-165.42920419,0.00012499,2]
[327983638,1716742233529,-150.55289131,0.00012499,2]
[327983639,1716742233539,-153.36,0.00012588,2]
[327983640,1716742233547,-218.8764611,0.00012588,2]
[327983641,1716742233557,-156.78942446,0.00012598,2]
[327983642,1716742233567,-306.53561288,0.00012598,2]
[327983643,1716742233577,-163.87350341,0.00012598,2]
[327983644,1716742233587,-318.65494683,0.00012598,2]
[327983645,1716742233597,-281.59752891,0.00012598,2]
[327983646,1716742233608,-358.80859427,0.00012598,2]
[327983647,1716742233617,-2978.6997159,0.00012598,2]
[327983648,1716742233628,-1652.31001679,0.00012598,2]
[327983649,1716742233640,-2146.551421,0.00012598,2]
[327983650,1716742233651,-10.16060848,0.00012598,2]
[327983651,1716742233661,-3284.46230029,0.00012598,2]
[327983652,1716742233672,-235.83391123,0.00012598,2]
[327983653,1716742233684,-78.33691874,0.00012598,2]
[327983654,1716742233693,-389.30522083,0.00012598,2]
[327983655,1716742233702,-691.73786043,0.00012598,2]
[327983656,1716742233718,-10573.8407,0.00012598,2]
[327983657,1716742233730,-17811.256461,0.00012598,2]
[327983658,1716742233741,-34570.56771405,0.00012598,2]
[327983659,1716742238227,-155.0,9.306e-05,2]
[327983660,1716742238237,-196.92,0.00012598,2]
[327983661,1716742238273,-507.60104607,0.00012598,2]
[327983662,1716742238286,-6469.61154165,0.00012598,2]
[327983663,1716742238330,-39572.4568071,0.00012598,2]
[327983664,1716742238342,-2432.76314196,0.00012598,2]
[327983665,1716742238594,-18819.40981846,0.00012598,2]
[327983667,1716742238606,-33896.38953883,0.00012598,2]
[327983678,1716742238800,-1205.70218896,0.00012598,2]
[327983680,1716742238811,-12129.45933,0.00012598,2]
[327983683,1716742238822,-23000.0,0.00012598,2]
[327983685,1716742238835,-6046.8891318,0.00012598,2]
[327983748,1716742243210,-878948.28277071,0.00012598,2]
[327983749,1716742243219,-56.65461218,0.00012599,2]
[327983755,1716742243927,-1186.21854723,0.00012599,2]
[327983756,1716742243941,-32742.96357368,0.00012599,2]
[327983757,1716742243953,-523.19152284,0.00012599,2]
[327983758,1716742243966,-2112.81062105,0.00012599,2]
[327983759,1716742243978,-499.99,0.00012599,2]
[327983760,1716742243987,-1967.58501755,0.000126,2]
[327983761,1716742244007,-463.99418245,0.000126,2]
[327983762,1716742244020,-19770.70581753,0.000126,2]
[327983763,1716742244034,-766.97499998,0.000126,2]
[327983764,1716742244493,-49256.87358249,0.000126,2]
[327983765,1716742244503,-150.55289131,0.00012633,2]
[327983766,1716742244514,-150.55289131,0.00012766,2]
[327983767,1716742244525,-150.55289131,0.000129,2]
[327983768,1716742244536,-322.9477499,0.000129,2]
[327983769,1716742244547,-155.05567326,0.000129,2]
[327983770,1716742244557,-2020.91338131,0.000129,2]
[327983771,1716742244569,-164.45040785,0.000129,2]
[327983772,1716742244579,-3635.23214557,0.000129,2]
[327983773,1716742244591,-166.32466518,0.000129,2]
[327983774,1716742244601,-153.32,0.00012963,2]
[327983775,1716742244611,-153.32,0.00012968,2]
[327983776,1716742244622,-153.32,0.00012973,2]
[327983777,1716742244632,-153.32,0.00012978,2]
[327983778,1716742244643,-153.32,0.00012983,2]
[327983779,1716742244653,-153.32,0.00012988,2]
[327983780,1716742244663,-153.36,0.0001299,2]
[327983781,1716742244674,-153.36,0.0001299,2]
[327983782,1716742244687,-153.36,0.0001299,2]
[327983783,1716742244696,-153.36,0.0001299,2]
[327983784,1716742244706,-153.36,0.0001299,2]